fUST/lending_fUST_20260528
["ID","MTS","AMOUNT","RATE_DAILY","PERIOD"]
[423189346,1779912651000,-500.0,0.00011506,2]
[423189354,1779912651000,-500.0,0.0001178,2]
[423189351,1779912651000,-244.0,0.00011772,2]
[423189353,1779912651000,-496.74,0.0001178,2]
[423189355,1779912651000,-546.16,0.0001178,2]
[423189352,1779912651000,-912.06,0.0001178,2]
[423189350,1779912651000,-1000.0,0.00011772,2]
[423189356,1779912651000,-500.0,0.0001178,2]
[423189328,1779912651000,-500.0,0.00011506,2]
[423189327,1779912651000,-766.88,0.00011506,2]
[423189341,1779912651000,-500.0,0.00011506,2]
[423189326,1779912651000,-739.95,0.00011506,2]
[423189322,1779912651000,-881.34,0.00011506,2]
[423189291,1779912651000,-631.4707114,0.00011373,2]
[423189298,1779912651000,-500.0,0.00011506,2]
[423189294,1779912651000,-443.0,0.00011421,2]
[423189311,1779912651000,-1274.28,0.00011506,2]
[423189314,1779912651000,-513.74,0.00011506,2]
[423189317,1779912651000,-674.75,0.00011506,2]
[423189315,1779912651000,-1035.29,0.00011506,2]
[423189313,1779912651000,-500.0,0.00011506,2]
[423189312,1779912651000,-500.0,0.00011506,2]
[423189316,1779912651000,-302.45,0.00011506,2]
[423189304,1779912651000,-500.0,0.00011506,2]
[423189308,1779912651000,-500.0,0.00011506,2]
[423189310,1779912651000,-1981.07,0.00011506,2]
[423189301,1779912651000,-500.0,0.00011506,2]
[423189323,1779912651000,-652.94,0.00011506,2]
[423189324,1779912651000,-693.71,0.00011506,2]
[423189321,1779912651000,-500.0,0.00011506,2]
[423189318,1779912651000,-664.42,0.00011506,2]
[423189309,1779912651000,-500.0,0.00011506,2]
[423189331,1779912651000,-2304.8,0.00011506,2]
[423189320,1779912651000,-2157.38,0.00011506,2]
[423189325,1779912651000,-557.81,0.00011506,2]
[423189330,1779912651000,-593.57,0.00011506,2]
[423189319,1779912651000,-516.29,0.00011506,2]
[423189306,1779912651000,-500.0,0.00011506,2]
[423189307,1779912651000,-505.91,0.00011506,2]
[423189305,1779912651000,-204.4,0.00011506,2]
[423189329,1779912651000,-1562.37,0.00011506,2]
[423189401,1779912652000,-500.0,0.0001178,2]
[423189402,1779912652000,-650.44,0.0001178,2]
[423189399,1779912652000,-500.0,0.0001178,2]
[423189400,1779912652000,-1635.04,0.0001178,2]
[423189397,1779912652000,-500.0,0.0001178,2]
[423189393,1779912652000,-12161.88,0.0001178,2]
[423189398,1779912652000,-622.62,0.0001178,2]
[423189396,1779912652000,-2688.69,0.0001178,2]
[423189390,1779912652000,-680.05,0.0001178,2]
[423189392,1779912652000,-500.93,0.0001178,2]
[423189394,1779912652000,-1027.08,0.0001178,2]
[423189403,1779912652000,-534.16,0.0001178,2]
[423189395,1779912652000,-500.0,0.0001178,2]
[423189407,1779912652000,-150.92,0.00012,2]
[423189412,1779912652000,-500.0,0.00012054,2]
[423189410,1779912652000,-500.0,0.00012054,2]
[423189406,1779912652000,-150.92,0.00012,2]
[423189408,1779912652000,-912.06,0.00012054,2]
[423189405,1779912652000,-5307.71076426,0.00011848,2]
[423189411,1779912652000,-1099.4086,0.00012054,2]
[423189409,1779912652000,-500.0,0.00012054,2]
[423189415,1779912652000,-500.0,0.00012054,2]
[423189416,1779912652000,-500.0,0.00012054,2]
[423189423,1779912652000,-664.42,0.00012054,2]
[423189420,1779912652000,-513.74,0.00012054,2]
[423189414,1779912652000,-505.91,0.00012054,2]
[423189417,1779912652000,-1981.07,0.00012054,2]
[423189418,1779912652000,-1274.28,0.00012054,2]
[423189404,1779912652000,-500.0,0.00011814,2]
[423189389,1779912652000,-1631.26,0.0001178,2]
[423189361,1779912652000,-1099.4086,0.0001178,2]
[423189383,1779912652000,-766.88,0.0001178,2]
[423189419,1779912652000,-500.0,0.00012054,2]
[423189362,1779912652000,-500.0,0.0001178,2]
[423189360,1779912652000,-255.252358,0.0001178,2]
[423189363,1779912652000,-500.0,0.0001178,2]
[423189366,1779912652000,-500.0,0.0001178,2]
[423189374,1779912652000,-664.42,0.0001178,2]
[423189364,1779912652000,-505.91,0.0001178,2]
[423189375,1779912652000,-516.29,0.0001178,2]
[423189373,1779912652000,-674.75,0.0001178,2]
[423189371,1779912652000,-513.74,0.0001178,2]
[423189365,1779912652000,-500.0,0.0001178,2]
[423189368,1779912652000,-1274.28,0.0001178,2]
[423189369,1779912652000,-500.0,0.0001178,2]
[423189391,1779912652000,-201.31,0.0001178,2]
[423189370,1779912652000,-458.56,0.0001178,2]
[423189367,1779912652000,-1981.07,0.0001178,2]
[423189376,1779912652000,-2157.38,0.0001178,2]
[423189387,1779912652000,-2304.8,0.0001178,2]
[423189378,1779912652000,-881.34,0.0001178,2]
[423189380,1779912652000,-693.71,0.0001178,2]
[423189377,1779912652000,-500.0,0.0001178,2]
[423189379,1779912652000,-652.94,0.0001178,2]
[423189388,1779912652000,-751.15,0.0001178,2]
[423189386,1779912652000,-593.57,0.0001178,2]
[423189384,1779912652000,-500.0,0.0001178,2]
[423189385,1779912652000,-1562.37,0.0001178,2]
[423189382,1779912652000,-739.95,0.0001178,2]
[423189381,1779912652000,-557.81,0.0001178,2]
[423189372,1779912652000,-1035.29,0.0001178,2]
[423189421,1779912652000,-1035.29,0.00012054,2]
[423189429,1779912652000,-693.71,0.00012054,2]
[423189413,1779912652000,-500.0,0.00012054,2]
[423189454,1779912652000,-912.06,0.00012328,2]
[423189460,1779912652000,-505.91,0.00012328,2]
[423189458,1779912652000,-500.0,0.00012328,2]
[423189455,1779912652000,-637.38,0.00012328,2]
[423189457,1779912652000,-1099.4086,0.00012328,2]
[423189459,1779912652000,-500.0,0.00012328,2]
[423189456,1779912652000,-500.0,0.00012328,2]
[423189463,1779912652000,-1981.07,0.00012328,2]
[423189466,1779912652000,-513.74,0.00012328,2]
[423189476,1779912652000,-557.81,0.00012328,2]
[423189465,1779912652000,-500.0,0.00012328,2]
[423189464,1779912652000,-1274.28,0.00012328,2]
[423189470,1779912652000,-516.29,0.00012328,2]
[423189452,1779912652000,-168.3888056,0.00012087,2]
[423189467,1779912652000,-1035.29,0.00012328,2]
[423189472,1779912652000,-500.0,0.00012328,2]
[423189469,1779912652000,-664.42,0.00012328,2]
[423189473,1779912652000,-881.34,0.00012328,2]
[423189468,1779912652000,-674.75,0.00012328,2]
[423189474,1779912652000,-652.94,0.00012328,2]
[423189471,1779912652000,-2157.38,0.00012328,2]
[423189422,1779912652000,-674.75,0.00012054,2]
[423189480,1779912652000,-1562.37,0.00012328,2]
[423189479,1779912652000,-194.05,0.00012328,2]
[423189477,1779912652000,-739.95,0.00012328,2]
[423189481,1779912652000,-593.57,0.00012328,2]
[423189482,1779912652000,-2304.8,0.00012328,2]
[423189484,1779912652000,-1631.26,0.00012328,2]
[423189475,1779912652000,-693.71,0.00012328,2]
[423189450,1779912652000,-650.44,0.00012054,2]
[423189478,1779912652000,-766.88,0.00012328,2]
[423189462,1779912652000,-386.13,0.00012328,2]
[423189453,1779912652000,-225.929,0.00012191,2]
[423189425,1779912652000,-2157.38,0.00012054,2]
[423189424,1779912652000,-516.29,0.00012054,2]
[423189427,1779912652000,-881.34,0.00012054,2]
[423189436,1779912652000,-2304.8,0.00012054,2]
[423189426,1779912652000,-500.0,0.00012054,2]
[423189430,1779912652000,-557.81,0.00012054,2]
[423189432,1779912652000,-766.88,0.00012054,2]
[423189428,1779912652000,-652.94,0.00012054,2]
[423189431,1779912652000,-739.95,0.00012054,2]
[423189433,1779912652000,-500.0,0.00012054,2]
[423189434,1779912652000,-1562.37,0.00012054,2]
[423189483,1779912652000,-751.15,0.00012328,2]
[423189438,1779912652000,-1631.26,0.00012054,2]
[423189435,1779912652000,-593.57,0.00012054,2]
[423189437,1779912652000,-751.15,0.00012054,2]
[423189442,1779912652000,-1027.08,0.00012054,2]
[423189451,1779912652000,-534.16,0.00012054,2]
[423189461,1779912652000,-500.0,0.00012328,2]
[423189445,1779912652000,-500.0,0.00012054,2]
[423189444,1779912652000,-2688.69,0.00012054,2]
[423189440,1779912652000,-500.93,0.00012054,2]
[423189447,1779912652000,-326.69,0.00012054,2]
[423189449,1779912652000,-500.0,0.00012054,2]
[423189446,1779912652000,-622.62,0.00012054,2]
[423189441,1779912652000,-12161.88,0.00012054,2]
[423189443,1779912652000,-500.0,0.00012054,2]
[423189448,1779912652000,-1635.04,0.00012054,2]
[423189439,1779912652000,-680.05,0.00012054,2]
[423189509,1779912653000,-513.74,0.00012602,2]
[423189512,1779912653000,-664.42,0.00012602,2]
[423189514,1779912653000,-2157.38,0.00012602,2]
[423189510,1779912653000,-1035.29,0.00012602,2]
[423189511,1779912653000,-674.75,0.00012602,2]
[423189515,1779912653000,-500.0,0.00012602,2]
[423189513,1779912653000,-516.29,0.00012602,2]
[423189520,1779912653000,-739.95,0.00012602,2]
[423189518,1779912653000,-693.71,0.00012602,2]
[423189522,1779912653000,-1562.37,0.00012602,2]
[423189526,1779912653000,-1631.26,0.00012602,2]
[423189519,1779912653000,-557.81,0.00012602,2]
[423189523,1779912653000,-593.57,0.00012602,2]
[423189525,1779912653000,-751.15,0.00012602,2]
[423189524,1779912653000,-2304.8,0.00012602,2]
[423189527,1779912653000,-680.05,0.00012602,2]
[423189528,1779912653000,-500.93,0.00012602,2]
[423189529,1779912653000,-12161.88,0.00012602,2]
[423189531,1779912653000,-500.0,0.00012602,2]
[423189534,1779912653000,-1635.04,0.00012602,2]
[423189507,1779912653000,-1274.28,0.00012602,2]
[423189521,1779912653000,-766.88,0.00012602,2]
[423189516,1779912653000,-881.34,0.00012602,2]
[423189493,1779912653000,-1635.04,0.00012328,2]
[423189505,1779912653000,-500.0,0.00012602,2]
[423189489,1779912653000,-500.0,0.00012328,2]
[423189488,1779912653000,-1027.08,0.00012328,2]
[423189490,1779912653000,-2688.69,0.00012328,2]
[423189487,1779912653000,-12161.88,0.00012328,2]
[423189485,1779912653000,-680.05,0.00012328,2]
[423189486,1779912653000,-500.93,0.00012328,2]
[423189492,1779912653000,-622.62,0.00012328,2]
[423189494,1779912653000,-500.0,0.00012328,2]
[423189491,1779912653000,-623.57,0.00012328,2]
[423189503,1779912653000,-500.0,0.00012602,2]
[423189498,1779912653000,-5332.84490019,0.0001247,2]
[423189504,1779912653000,-505.91,0.00012602,2]
[423189502,1779912653000,-500.0,0.00012602,2]
[423189495,1779912653000,-650.44,0.00012328,2]
[423189501,1779912653000,-1099.4086,0.00012602,2]
[423189500,1779912653000,-500.0,0.00012602,2]
[423189496,1779912653000,-534.16,0.00012328,2]
[423189499,1779912653000,-912.06,0.00012602,2]
[423189497,1779912653000,-500.0,0.00012362,2]
[423189517,1779912653000,-652.94,0.00012602,2]
[423189506,1779912653000,-1981.07,0.00012602,2]
[423189508,1779912653000,-500.0,0.00012602,2]
[423189532,1779912653000,-2688.69,0.00012602,2]
[423189536,1779912653000,-650.44,0.00012602,2]
[423189535,1779912653000,-497.3,0.00012602,2]
[423189560,1779912653000,-500.0,0.00012876,2]
[423189559,1779912653000,-2157.38,0.00012876,2]
[423189564,1779912653000,-557.81,0.00012876,2]
[423189566,1779912653000,-766.88,0.00012876,2]
[423189575,1779912653000,-1027.08,0.00012876,2]
[423189565,1779912653000,-739.95,0.00012876,2]
[423189569,1779912653000,-2304.8,0.00012876,2]
[423189567,1779912653000,-1562.37,0.00012876,2]
[423189568,1779912653000,-593.57,0.00012876,2]
[423189576,1779912653000,-500.0,0.00012876,2]
[423189571,1779912653000,-1631.26,0.00012876,2]
[423189573,1779912653000,-500.93,0.00012876,2]
[423189570,1779912653000,-751.15,0.00012876,2]
[423189574,1779912653000,-12161.88,0.00012876,2]
[423189578,1779912653000,-622.62,0.00012876,2]
[423189577,1779912653000,-2688.69,0.00012876,2]
[423189579,1779912653000,-1635.04,0.00012876,2]
[423189580,1779912653000,-650.44,0.00012876,2]
[423189582,1779912653000,-278.78756615,0.00012941,7]
[423189581,1779912653000,-534.16,0.00012876,2]
[423189530,1779912653000,-1027.08,0.00012602,2]
[423189562,1779912653000,-652.94,0.00012876,2]
[423189561,1779912653000,-881.34,0.00012876,2]
[423189572,1779912653000,-680.05,0.00012876,2]
[423189555,1779912653000,-1035.29,0.00012876,2]
[423189533,1779912653000,-622.62,0.00012602,2]
[423189556,1779912653000,-674.75,0.00012876,2]
[423189539,1779912653000,-218.4885836,0.00012625,2]
[423189537,1779912653000,-534.16,0.00012602,2]
[423189543,1779912653000,-278.78756615,0.00012864,2]
[423189544,1779912653000,-912.06,0.00012876,2]
[423189541,1779912653000,-328.86748821,0.00012746,2]
[423189538,1779912653000,-315.0,0.00012603,3]
[423189542,1779912653000,-278.78756615,0.00012787,2]
[423189545,1779912653000,-500.0,0.00012876,2]
[423189547,1779912653000,-500.0,0.00012876,2]
[423189540,1779912653000,-456.7807192,0.0001268,2]
[423189554,1779912653000,-513.74,0.00012876,2]
[423189550,1779912653000,-500.0,0.00012876,2]
[423189546,1779912653000,-1099.4086,0.00012876,2]
[423189551,1779912653000,-1981.07,0.00012876,2]
[423189548,1779912653000,-500.0,0.00012876,2]
[423189552,1779912653000,-1274.28,0.00012876,2]
[423189553,1779912653000,-500.0,0.00012876,2]
[423189558,1779912653000,-516.29,0.00012876,2]
[423189563,1779912653000,-693.71,0.00012876,2]
[423189549,1779912653000,-505.91,0.00012876,2]
[423189557,1779912653000,-664.42,0.00012876,2]
[423189617,1779912654000,-2304.8,0.0001315,2]
[423189621,1779912654000,-500.93,0.0001315,2]
[423189609,1779912654000,-881.34,0.0001315,2]
[423189623,1779912654000,-1027.08,0.0001315,2]
[423189622,1779912654000,-12161.88,0.0001315,2]
[423189613,1779912654000,-739.95,0.0001315,2]
[423189619,1779912654000,-1631.26,0.0001315,2]
[423189614,1779912654000,-766.88,0.0001315,2]
[423189618,1779912654000,-751.15,0.0001315,2]
[423189615,1779912654000,-1562.37,0.0001315,2]
[423189624,1779912654000,-500.0,0.0001315,2]
[423189616,1779912654000,-593.57,0.0001315,2]
[423189625,1779912654000,-2688.69,0.0001315,2]
[423189633,1779912654000,-278.353032,0.00013164,2]
[423189630,1779912654000,-191.058287,0.00013164,2]
[423189628,1779912654000,-650.44,0.0001315,2]
[423189629,1779912654000,-534.16,0.0001315,2]
[423189627,1779912654000,-1635.04,0.0001315,2]
[423189631,1779912654000,-160.0,0.00013164,2]
[423189641,1779912654000,-278.78756615,0.00013403,14]
[423189634,1779912654000,-278.78756615,0.00013172,7]
[423189642,1779912654000,-912.06,0.00013424,2]
[423189636,1779912654000,-165299.59746458,0.000133,2]
[423189637,1779912654000,-9017.06876847,0.00013324,2]
[423189635,1779912654000,-278.78756615,0.00013249,14]
[423189612,1779912654000,-557.81,0.0001315,2]
[423189626,1779912654000,-622.62,0.0001315,2]
[423189611,1779912654000,-693.71,0.0001315,2]
[423189583,1779912654000,-1000.0,0.00012949,2]
[423189610,1779912654000,-652.94,0.0001315,2]
[423189588,1779912654000,-278.78756615,0.00013095,7]
[423189584,1779912654000,-492.0,0.00012949,2]
[423189587,1779912654000,-6096.29372937,0.00013093,2]
[423189586,1779912654000,-175.341213,0.00013034,2]
[423189585,1779912654000,-278.78756615,0.00013018,7]
[423189590,1779912654000,-500.0,0.0001315,2]
[423189589,1779912654000,-912.06,0.0001315,2]
[423189592,1779912654000,-151.0,0.0001315,2]
[423189598,1779912654000,-500.0,0.0001315,2]
[423189632,1779912654000,-219.176516,0.00013164,2]
[423189597,1779912654000,-505.91,0.0001315,2]
[423189594,1779912654000,-1099.4086,0.0001315,2]
[423189620,1779912654000,-680.05,0.0001315,2]
[423189595,1779912654000,-500.0,0.0001315,2]
[423189593,1779912654000,-151.0,0.0001315,2]
[423189591,1779912654000,-151.0,0.0001315,2]
[423189600,1779912654000,-1274.28,0.0001315,2]
[423189599,1779912654000,-1981.07,0.0001315,2]
[423189604,1779912654000,-674.75,0.0001315,2]
[423189606,1779912654000,-516.29,0.0001315,2]
[423189601,1779912654000,-500.0,0.0001315,2]
[423189602,1779912654000,-513.74,0.0001315,2]
[423189603,1779912654000,-1035.29,0.0001315,2]
[423189605,1779912654000,-664.42,0.0001315,2]
[423189607,1779912654000,-2157.38,0.0001315,2]
[423189608,1779912654000,-500.0,0.0001315,2]
[423189596,1779912654000,-608.0,0.0001315,2]
[423189640,1779912654000,-579.968,0.00013358,2]
[423189688,1779912654000,-500.0,0.00013698,2]
[423189639,1779912654000,-278.78756615,0.00013326,14]
[423189672,1779912654000,-680.05,0.00013424,2]
[423189681,1779912654000,-278.78756615,0.00013461,60]
[423189679,1779912654000,-1635.04,0.00013424,2]
[423189673,1779912654000,-500.93,0.00013424,2]
[423189677,1779912654000,-2688.69,0.00013424,2]
[423189674,1779912654000,-12161.88,0.00013424,2]
[423189678,1779912654000,-622.62,0.00013424,2]
[423189676,1779912654000,-500.0,0.00013424,2]
[423189675,1779912654000,-1027.08,0.00013424,2]
[423189682,1779912654000,-278.78756615,0.0001348,30]
[423189690,1779912654000,-500.0,0.00013698,2]
[423189686,1779912654000,-500.0,0.00013694,2]
[423189671,1779912654000,-1631.26,0.00013424,2]
[423189685,1779912654000,-278.78756615,0.00013634,30]
[423189687,1779912654000,-912.06,0.00013698,2]
[423189683,1779912654000,-173.73069484,0.00013556,2]
[423189689,1779912654000,-1099.4086,0.00013698,2]
[423189691,1779912654000,-505.91,0.00013698,2]
[423189693,1779912654000,-1981.07,0.00013698,2]
[423189695,1779912654000,-500.0,0.00013698,2]
[423189699,1779912654000,-664.42,0.00013698,2]
[423189697,1779912654000,-1035.29,0.00013698,2]
[423189698,1779912654000,-674.75,0.00013698,2]
[423189694,1779912654000,-1274.28,0.00013698,2]
[423189696,1779912654000,-513.74,0.00013698,2]
[423189638,1779912654000,-159.74395873,0.00013324,2]
[423189684,1779912654000,-278.78756615,0.00013557,30]
[423189669,1779912654000,-2304.8,0.00013424,2]
[423189692,1779912654000,-500.0,0.00013698,2]
[423189670,1779912654000,-751.15,0.00013424,2]
[423189643,1779912654000,-500.0,0.00013424,2]
[423189680,1779912654000,-650.44,0.00013424,2]
[423189655,1779912654000,-1035.29,0.00013424,2]
[423189645,1779912654000,-151.0,0.00013424,2]
[423189644,1779912654000,-151.0,0.00013424,2]
[423189656,1779912654000,-674.75,0.00013424,2]
[423189647,1779912654000,-1099.4086,0.00013424,2]
[423189646,1779912654000,-151.0,0.00013424,2]
[423189654,1779912654000,-513.74,0.00013424,2]
[423189653,1779912654000,-500.0,0.00013424,2]
[423189649,1779912654000,-505.91,0.00013424,2]
[423189652,1779912654000,-1274.28,0.00013424,2]
[423189650,1779912654000,-500.0,0.00013424,2]
[423189648,1779912654000,-500.0,0.00013424,2]
[423189651,1779912654000,-1981.07,0.00013424,2]
[423189665,1779912654000,-739.95,0.00013424,2]
[423189659,1779912654000,-2157.38,0.00013424,2]
[423189662,1779912654000,-652.94,0.00013424,2]
[423189666,1779912654000,-766.88,0.00013424,2]
[423189660,1779912654000,-530.51,0.00013424,2]
[423189667,1779912654000,-1562.37,0.00013424,2]
[423189661,1779912654000,-881.34,0.00013424,2]
[423189663,1779912654000,-693.71,0.00013424,2]
[423189668,1779912654000,-593.57,0.00013424,2]
[423189657,1779912654000,-664.42,0.00013424,2]
[423189658,1779912654000,-516.29,0.00013424,2]
[423189664,1779912654000,-557.81,0.00013424,2]
[423189742,1779912655000,-199.583038,0.00013699,2]
[423189743,1779912655000,-199.583038,0.00013699,2]
[423189740,1779912655000,-199.583038,0.00013699,2]
[423189741,1779912655000,-199.583038,0.00013699,2]
[423189739,1779912655000,-199.583038,0.00013699,2]
[423189735,1779912655000,-199.583038,0.00013699,2]
[423189737,1779912655000,-199.583038,0.00013699,2]
[423189738,1779912655000,-199.583038,0.00013699,2]
[423189733,1779912655000,-199.583038,0.00013699,2]
[423189745,1779912655000,-199.583038,0.00013699,2]
[423189736,1779912655000,-199.583038,0.00013699,2]
[423189747,1779912655000,-251.455704,0.00013699,2]
[423189746,1779912655000,-151.0,0.00013699,2]
[423189750,1779912655000,-199.583038,0.00013699,2]
[423189762,1779912655000,-195.144538,0.00013699,2]
[423189748,1779912655000,-199.583038,0.00013699,2]
[423189751,1779912655000,-195.144538,0.00013699,2]
[423189759,1779912655000,-195.144538,0.00013699,2]
[423189758,1779912655000,-195.144538,0.00013699,2]
[423189755,1779912655000,-195.144538,0.00013699,2]
[423189754,1779912655000,-199.583038,0.00013699,2]
[423189756,1779912655000,-195.144538,0.00013699,2]
[423189752,1779912655000,-199.583038,0.00013699,2]
[423189757,1779912655000,-195.144538,0.00013699,2]
[423189753,1779912655000,-195.144538,0.00013699,2]
[423189760,1779912655000,-195.144538,0.00013699,2]
[423189771,1779912655000,-342.21299,0.00013699,2]
[423189772,1779912655000,-342.21299,0.00013699,2]
[423189744,1779912655000,-151.0,0.00013699,2]
[423189749,1779912655000,-195.144538,0.00013699,2]
[423189734,1779912655000,-199.583038,0.00013699,2]
[423189704,1779912655000,-693.71,0.00013698,2]
[423189725,1779912655000,-151.0,0.00013699,2]
[423189707,1779912655000,-766.88,0.00013698,2]
[423189706,1779912655000,-739.95,0.00013698,2]
[423189705,1779912655000,-557.81,0.00013698,2]
[423189700,1779912655000,-516.29,0.00013698,2]
[423189773,1779912655000,-342.21299,0.00013699,2]
[423189701,1779912655000,-2157.38,0.00013698,2]
[423189703,1779912655000,-652.94,0.00013698,2]
[423189709,1779912655000,-593.57,0.00013698,2]
[423189708,1779912655000,-1562.37,0.00013698,2]
[423189710,1779912655000,-2304.8,0.00013698,2]
[423189719,1779912655000,-622.62,0.00013698,2]
[423189716,1779912655000,-1027.08,0.00013698,2]
[423189712,1779912655000,-1631.26,0.00013698,2]
[423189711,1779912655000,-751.15,0.00013698,2]
[423189728,1779912655000,-151.0,0.00013699,2]
[423189713,1779912655000,-680.05,0.00013698,2]
[423189717,1779912655000,-500.0,0.00013698,2]
[423189718,1779912655000,-2688.69,0.00013698,2]
[423189715,1779912655000,-12161.88,0.00013698,2]
[423189721,1779912655000,-650.44,0.00013698,2]
[423189731,1779912655000,-151.0,0.00013699,2]
[423189732,1779912655000,-179.03672971,0.00013699,2]
[423189720,1779912655000,-1635.04,0.00013698,2]
[423189723,1779912655000,-151.0,0.00013699,2]
[423189722,1779912655000,-180.0180018,0.00013699,2]
[423189730,1779912655000,-151.0,0.00013699,2]
[423189729,1779912655000,-151.0,0.00013699,2]
[423189727,1779912655000,-151.0,0.00013699,2]
[423189726,1779912655000,-151.0,0.00013699,2]
[423189724,1779912655000,-151.0,0.00013699,2]
[423189714,1779912655000,-500.93,0.00013698,2]
[423189764,1779912655000,-195.144538,0.00013699,2]
[423189702,1779912655000,-881.34,0.00013698,2]
[423189763,1779912655000,-195.144538,0.00013699,2]
[423189806,1779912655000,-590.78801875,0.00013699,7]
[423189812,1779912655000,-458.59209,0.00013829,2]
[423189813,1779912655000,-757.184181,0.00013829,2]
[423189808,1779912655000,-6642.19519077,0.00013715,2]
[423189805,1779912655000,-393.85867917,0.00013699,7]
[423189814,1779912655000,-162.16708219,0.00013845,2]
[423189807,1779912655000,-278.78756615,0.0001371,30]
[423189802,1779912655000,-229.4956338,0.00013699,2]
[423189804,1779912655000,-196.92933958,0.00013699,7]
[423189809,1779912655000,-278.78756615,0.00013787,60]
[423189811,1779912655000,-160.0,0.00013829,2]
[423189810,1779912655000,-263.011819,0.00013823,2]
[423189816,1779912655000,-324.33416438,0.00013845,2]
[423189826,1779912655000,-505.91,0.00013972,2]
[423189803,1779912655000,-458.99126759,0.00013699,2]
[423189818,1779912655000,-688.48690139,0.00013909,2]
[423189819,1779912655000,-787.71735833,0.00013909,7]
[423189817,1779912655000,-341.52380668,0.00013845,2]
[423189815,1779912655000,-170.76190334,0.00013845,2]
[423189827,1779912655000,-249.6,0.00013972,2]
[423189821,1779912655000,-347.46138968,0.00013969,2]
[423189820,1779912655000,-319.418532,0.00013961,2]
[423189824,1779912655000,-1099.4086,0.00013972,2]
[423189822,1779912655000,-912.06,0.00013972,2]
[423189825,1779912655000,-361.1,0.00013972,2]
[423189830,1779912655000,-500.0,0.00013972,2]
[423189831,1779912655000,-513.74,0.00013972,2]
[423189829,1779912655000,-1274.28,0.00013972,2]
[423189832,1779912655000,-1035.29,0.00013972,2]
[423189761,1779912655000,-195.144538,0.00013699,2]
[423189828,1779912655000,-1981.07,0.00013972,2]
[423189800,1779912655000,-1000.0,0.00013699,2]
[423189823,1779912655000,-159.68,0.00013972,2]
[423189795,1779912655000,-451.734332,0.00013699,2]
[423189797,1779912655000,-451.734332,0.00013699,2]
[423189766,1779912655000,-195.144538,0.00013699,2]
[423189765,1779912655000,-195.144538,0.00013699,2]
[423189768,1779912655000,-342.21299,0.00013699,2]
[423189767,1779912655000,-195.144538,0.00013699,2]
[423189770,1779912655000,-342.21299,0.00013699,2]
[423189775,1779912655000,-342.21299,0.00013699,2]
[423189785,1779912655000,-451.734332,0.00013699,2]
[423189786,1779912655000,-451.734332,0.00013699,2]
[423189787,1779912655000,-451.734332,0.00013699,2]
[423189774,1779912655000,-342.21299,0.00013699,2]
[423189776,1779912655000,-342.21299,0.00013699,2]
[423189777,1779912655000,-342.21299,0.00013699,2]
[423189784,1779912655000,-342.21299,0.00013699,2]
[423189778,1779912655000,-342.21299,0.00013699,2]
[423189769,1779912655000,-342.21299,0.00013699,2]
[423189779,1779912655000,-342.21299,0.00013699,2]
[423189780,1779912655000,-342.21299,0.00013699,2]